Workbook

Sheet ΣΥΝΤΟΝΙΣΜΟΣ
J5: t | K5: x(t) | L5: u(t) | M5: a(t) | N5: F(t) | O5: Pr(t) | P5: Pm(t) | Q5: Ps(t) | R5: P(t)=Pr+Pm+Ps | T5: ω | U5: Ζ(ω) | V5: x0 | W5: u0 | X5: a0 | Y5: παρονομαστής | Z5: Αεργο x | AA5: Απορρ x | AB5: Μέτρο x | AC5: Paver
E6: r | F6: 5 | I6: 0 | J6: 0 | K6: =F0/(ω*Z)*SIN(ω*J6-φ1) -> -0.3061796541 | L6: =F0/Z*COS(ω*J6-φ1) -> 0.2608995644 | M6: =-ω*F0/Z*SIN(ω*J6-φ1) -> 1.481909526 | N6: =F0*COS(ω*J6) -> 10 | O6: =rr*L6*L6 -> 0.3403429136 | P6: =m*M6*L6 -> 3.866295499 | Q6: =s*K6*L6 -> -1.597642768 | R6: =O6+P6+Q6 -> 2.608995644 | S6: 0 | T6: 0.0001 | U6: =SQRT(rr*rr+(T6*m-s/T6)^2) -> 199999.9991 | V6: =F0/(T6*U6) -> 0.5000000023 | W6: =F0/U6 -> 5.000000023e-05 | X6: =T6*F0/U6 -> 5.000000023e-09 | Y6: =T6^2*rr^2+m^2*(ωτ^2-T6^2)^2 -> 399.9999963 | Z6: =F0*m*(ωτ^2-T6^2)/Y6 -> 0.5000000022 | AA6: =F0*rr*T6/Y6 -> 1.250000012e-05 | AB6: =SQRT(Z6^2+AA6^2) -> 0.5000000023 | AC6: =F0*F0*rr/(2*U6*U6) -> 6.250000059e-09
E7: s | F7: 20 | I7: 1 | J7: =I7*2*3.1416/(ω*121) -> 0.02360330579 | K7: -0.299611624 | L7: 0.2955101397 | M7: 1.45012026 | N7: 9.986520821 | O7: =rr*L7*L7 -> 0.4366312134 | P7: =m*M7*L7 -> 4.285252407 | Q7: =s*K7*L7 -> -1.770765458 | R7: =O7+P7+Q7 -> 2.951118163 | S7: 1 | T7: =S7*ωτ/50 -> 0.02828427125 | U7: 706.841623 | V7: =F0/(T7*U7) -> 0.5001875655 | W7: 0.01414744078 | X7: 0.0004001500524 | Y7: 399.700064 | Z7: 0.5001750513 | AA7: 0.00353818698 | AB7: =SQRT(Z7^2+AA7^2) -> 0.5001875655 | AC7: 0.0005003752013
E8: m | F8: 10 | I8: 2 | J8: 0.04720661157 | K8: -0.2922358902 | L8: 0.3293240682 | M8: 1.414421708 | N8: 9.946119622 | O8: 0.5422717094 | P8: =m*M8*L8 -> 4.658031111 | Q8: -1.924806244 | R8: 3.275496576 | S8: 2 | T8: 0.05656854249 | U8: 353.0231154 | V8: 0.5007510488 | W8: 0.02832675699 | X8: 0.001602403356 | Y8: 398.801024 | Z8: 0.5007008207 | AA8: 0.007092326635 | AB8: 0.5007510488 | AC8: 0.002006012903
I9: 3 | J9: 0.07080991736 | K9: -0.2840723363 | L9: 0.362250193 | M9: 1.374910108 | N9: 9.878905317 | O9: 0.6561260117 | P9: 4.980614519 | Q9: -2.058105173 | R9: 3.578635358 | S9: 3 | T9: 0.08485281374 | U9: 234.9069508 | V9: 0.5016928183 | W9: 0.04257004726 | X9: 0.003612188291 | Y9: 397.305184 | Z9: 0.5015791589 | AA9: 0.01067854349 | AB9: 0.5016928183 | AC9: 0.00453052231
E10: ω0 | F10: =SQRT(s/m) -> 1.414213562 | G10: Ιδιοσυχνότητα | I10: 4 | J10: 0.09441322314 | K10: -0.2751429701 | L10: 0.3941997508 | M10: 1.331691975 | N10: 9.785059105 | O10: 0.7769672178 | P10: 5.249526448 | Q10: -2.169225805 | R10: 3.857267861 | S10: 4 | T10: 0.113137085 | U10: 175.7164762 | V10: 0.5030168461 | W10: 0.05690985966 | X10: 0.00643861563 | Y10: 395.216384 | Z10: 0.5028131627 | AA10: 0.01431330906 | AB10: 0.5030168461 | AC10: 0.008096830318
E11: ωx | F11: =SQRT(ωτ*ωτ-rr*rr/(2*m*m)) -> 1.369306394 | G11: Συχν. Συντον, ΠΛΑΤΟΥΣ <ω0 | I11: 5 | J11: 0.1180165289 | K11: -0.2654718636 | L11: 0.4250866108 | M11: 1.28488382 | N11: 9.664833981 | O11: 0.9034931335 | P11: 5.461869083 | Q11: -2.256970695 | R11: 4.108391521 | S11: 5 | T11: 0.1414213562 | U11: 140.0963954 | V11: 0.5047287471 | W11: 0.07137942395 | X11: 0.01009457494 | Y11: 392.54 | Z11: 0.5044071942 | AA11: 0.01801362361 | AB11: 0.5047287471 | AC11: 0.01273755541
E12: ωa | F12: =SQRT(2*s*s/(2*s*m-rr*rr)) -> 1.460593487 | G12: Συχν. Συντον, ΕΠΙΤΑΧ. >ω0 | I12: 6 | J12: 0.1416198347 | K12: -0.2550850886 | L12: 0.4548275071 | M12: 1.234611829 | N12: 9.518554051 | O12: 1.034340306 | P12: 5.615354203 | Q12: -2.320394299 | R12: 4.32930021 | S12: 6 | T12: 0.1697056275 | U12: 116.2616398 | V12: 0.5068358334 | W12: 0.08601289314 | X12: 0.014596872 | Y12: 389.282944 | Z12: 0.5063669062 | AA12: 0.02179720819 | AB12: 0.5068358334 | AC12: 0.01849554446
I13: 7 | J13: 0.1652231405 | K13: -0.244010646 | L13: 0.4833422631 | M13: 1.181011527 | N13: 9.346613662 | O13: 1.168098717 | P13: 5.708327841 | Q13: -2.358813157 | R13: 4.5176134 | S13: 7 | T13: 0.1979898987 | U13: 99.16149269 | V13: 0.5093471857 | W13: 0.1008455977 | X13: 0.01996640968 | Y13: 385.453664 | Z13: 0.5086992765 | AA13: 0.02568271069 | AB13: 0.5093471857 | AC13: 0.02542458644
E14: F0 | F14: 10 | I14: 8 | J14: 0.1888264463 | K14: -0.2322783908 | L14: 0.5105540078 | M14: 1.124227412 | N14: 9.149476338 | O14: 1.303326974 | P14: 5.739788106 | Q14: -2.371813267 | R14: 4.671301813 | S14: 8 | T14: 0.22627417 | U14: 86.27062072 | V14: 0.5122737434 | W14: 0.1159143161 | X14: 0.02622841566 | Y14: 381.062144 | Z14: 0.5114126477 | AA14: 0.02968993031 | AB14: 0.5122737434 | AC14: 0.03359032169
E15: ω της F0 | F15: 2.2 | I15: 9 | J15: 0.2124297521 | K15: -0.2199199512 | L15: 0.5363893826 | M15: 1.064412564 | N15: 8.927673527 | O15: 1.438567849 | P15: 5.70939598 | Q15: -2.359254537 | R15: 4.788709292 | S15: 9 | T15: 0.2545584412 | U15: 76.18608473 | V15: 0.5156284144 | W15: 0.1312575654 | X15: 0.03341272125 | Y15: 376.119904 | Z15: 0.5145167749 | AA15: 0.03384006517 | AB15: 0.5156284144 | AC15: 0.0430713712
E16: Z | F16: =SQRT(rr*rr+(ω*m-s/ω)^2) -> 13.84357714 | I16: 10 | J16: 0.2360330579 | K16: -0.2069686435 | L16: 0.5607787398 | M16: 1.001728235 | N16: 8.681803175 | O16: 1.572363975 | P16: 5.61747897 | Q16: -2.321272302 | R16: 4.868570643 | S16: 10 | T16: 0.2828427125 | U16: 68.0661443 | V16: 0.5194262055 | W16: 0.1469159169 | X16: 0.04155409644 | Y16: 370.64 | Z16: 0.5180228793 | AA16: 0.03815598862 | AB16: 0.5194262055 | AC16: 0.0539607166
E17: φ | F17: =ASIN((ω*m-s/ω)/Z) -> 1.201265119 | G17: =φ1*180/3.1415927 -> 68.82742036 | I17: 11 | J17: 0.2596363636 | K17: -0.1934593824 | L17: 0.5836563295 | M17: 0.9363434107 | N17: 8.412528107 | O17: 1.703273555 | P17: 5.465027582 | Q17: -2.25827586 | R17: 4.910025277 | S17: 11 | T17: 0.3111269837 | U17: 61.37516929 | V17: 0.5236843776 | W17: 0.1629323408 | X17: 0.05069264775 | Y17: 364.637024 | Z17: 0.521943707 | AA17: 0.04266256074 | AB17: 0.5236843776 | AC17: 0.06636736921
I18: 12 | J18: 0.2832396694 | K18: -0.1794285865 | L18: 0.6049604776 | M18: 0.8684343586 | N18: 8.120574244 | O18: 1.829885897 | P18: 5.253684643 | Q18: -2.170944068 | R18: 4.912626473 | S18: 12 | T18: 0.339411255 | U18: 55.75609583 | V18: 0.5284226256 | W18: 0.1793525865 | X18: 0.06087428646 | Y18: 358.127104 | Z18: 0.5262935921 | AA18: 0.04738698233 | AB18: 0.5284226256 | AC18: 0.08041837571
E19: Q | F19: =ωτ*m/rr -> 2.828427125 | I19: 13 | J19: 0.3068429752 | K19: -0.1649140806 | L19: 0.6246337516 | M19: 0.79818415 | N19: 7.806728647 | O19: 1.950836618 | P19: 4.985727601 | Q19: -2.060218017 | R19: 4.876346202 | S19: 13 | T19: 0.3676955262 | U19: 50.9617492 | V19: 0.5336632884 | W19: 0.1962256036 | X19: 0.07215127659 | Y19: 351.127904 | Z19: 0.5310885232 | AA19: 0.05235920045 | AB19: 0.5336632884 | AC19: 0.09626121882
I20: 14 | J20: 0.330446281 | K20: -0.1499549934 | L20: 0.6426231156 | M20: 0.7257821681 | N20: 7.47183739 | O20: 2.064822343 | P20: 4.664043981 | Q20: -1.927290901 | R20: 4.801575423 | S20: 14 | T20: 0.3959797975 | U20: 46.81560005 | V20: 0.5394315909 | W20: 0.2136040121 | X20: 0.08458287345 | Y20: 343.658624 | Z20: 0.5363462085 | AA20: 0.05761237603 | AB20: 0.5394315909 | AC20: 0.114066685
I21: 15 | J21: 0.3540495868 | K21: -0.1345916522 | L21: 0.6588800731 | M21: 0.6514235965 | N21: 7.116803287 | O21: 2.170614754 | P21: 4.292100269 | Q21: -1.773595153 | R21: 4.689119871 | S21: 15 | T21: 0.4242640687 | U21: 43.18821856 | V21: 0.545755922 | W21: 0.231544628 | X21: 0.09823606596 | Y21: 335.74 | Z21: 0.5420861381 | AA21: 0.06318342597 | AB21: 0.545755922 | AC21: 0.1340322869
I22: 16 | J22: 0.3776528926 | K22: -0.118865474 | L22: 0.6733607982 | M22: 0.575308894 | N22: 6.742583451 | O22: 2.267073823 | P22: 3.87390456 | Q22: -1.600787008 | R22: 4.540191375 | S22: 16 | T22: 0.45254834 | U22: 39.9825587 | V22: 0.5526681541 | W22: 0.2501090557 | X22: 0.113186438 | Y22: 327.394304 | Z22: 0.5483296374 | AA22: 0.06911365507 | AB22: 0.5526681541 | AC22: 0.1563863493
I23: 17 | J23: 0.4012561983 | K23: -0.1028188539 | L23: 0.6860262531 | M23: 0.4976432531 | N23: 6.350186717 | O23: 2.3531601 | P23: 3.413963363 | Q23: -1.410728662 | R23: 4.3563948 | S23: 17 | T23: 0.4808326112 | U23: 37.12443678 | V23: 0.5602040078 | W23: 0.2693643559 | X23: 0.1295191666 | Y23: 318.645344 | Z23: 0.5550999044 | AA23: 0.07544949585 | AB23: 0.5602040078 | AC23: 0.1813928905
I24: 18 | J24: 0.4248595041 | K24: -0.08649505117 | L24: 0.6968422939 | M24: 0.4186360477 | N24: 5.940670923 | O24: 2.427945913 | P24: 2.917233038 | Q24: -1.205468197 | R24: 4.139710753 | S24: 18 | T24: 0.5091168825 | U24: 34.55618435 | V24: 0.5684034683 | W24: 0.2893838018 | X24: 0.147330179 | Y24: 309.518464 | Z24: 0.5624220208 | AA24: 0.08224337829 | AB24: 0.5684034683 | AC24: 0.2093574618
I25: 19 | J25: 0.4484628099 | K25: -0.06993807195 | L25: 0.7057797622 | M25: 0.3385002682 | N25: 5.515140055 | O25: 2.490625364 | P25: 2.389066388 | Q25: -0.9872175158 | R25: 3.892474236 | S25: 19 | T25: 0.5374011537 | U25: 32.23230602 | V25: 0.5773112597 | W25: 0.310247737 | X25: 0.1667274918 | Y25: 300.040544 | Z25: 0.5703229228 | AA25: 0.08955475592 | AB25: 0.5773112597 | AC25: 0.2406341458
I26: 20 | J26: 0.4720661157 | K26: -0.05319255117 | L26: 0.7128145642 | M26: 0.2574519476 | N26: 5.074741274 | O26: 2.540523015 | P26: 1.835154979 | Q26: -0.7583285036 | R26: 3.61734949 | S26: 20 | T26: 0.5656854249 | U26: 30.11644069 | V26: 0.5869773826 | W26: 0.3320445501 | X26: 0.1878327624 | Y26: 290.24 | Z26: 0.578831312 | AA26: 0.09745132045 | AB26: 0.5869773826 | AC26: 0.2756339581
I27: 21 | J27: 0.4956694215 | K27: -0.036303632 | L27: 0.7179277352 | M27: 0.1757095789 | N27: 4.620661825 | O27: 2.577101165 | P27: 1.2614678 | Q27: -0.521267686 | R27: 3.317301279 | S27: 21 | T27: 0.5939696962 | U27: 28.17919176 | V27: 0.597457723 | W27: 0.3548717822 | X27: 0.2107830847 | Y27: 280.146784 | Z27: 0.5879774797 | AA27: 0.1060104435 | AB27: 0.597457723 | AC27: 0.3148349545
I28: 22 | J28: 0.5192727273 | K28: -0.0193168442 | L28: 0.7211054909 | M28: 0.09349352594 | N28: 4.15412583 | O28: 2.599965645 | P28: 0.6741869492 | Q28: -0.2785896484 | R28: 2.995562946 | S28: 22 | T28: 0.6222539674 | U28: 26.39654999 | V28: 0.6088147379 | W28: 0.3788373861 | X28: 0.2357330665 | Y28: 269.792384 | Z28: 0.5977930052 | AA28: 0.115320892 | AB28: 0.6088147379 | AC28: 0.3587944128
I29: 23 | J29: 0.5428760331 | K29: -0.002277981364 | L29: 0.7223392646 | M29: 0.0110254298 | N29: 3.676390994 | O29: 2.608870066 | P29: 0.07964100856 | Q29: -0.03290950767 | R29: 2.655601567 | S29: 23 | T29: 0.6505382387 | U29: 24.74872894 | V29: 0.6211182233 | W29: 0.404061155 | X29: 0.2628572321 | Y29: 259.209824 | Z29: 0.6083102776 | AA29: 0.1254848733 | AB29: 0.6211182233 | AC29: 0.4081635424
I30: 24 | J30: 0.5664793388 | K30: 0.01476702254 | L30: 0.7216257302 | M30: -0.07147238908 | N30: 3.188745211 | O30: 2.603718473 | P30: -0.5157631496 | Q30: 0.2131252684 | R30: 2.301080591 | S30: 24 | T30: 0.6788225099 | U30: 23.21929274 | V30: 0.6344461667 | W30: 0.4306763393 | X30: 0.2923527936 | Y30: 248.433664 | Z30: 0.6195617676 | AA30: 0.1366204763 | AB30: 0.6344461667 | AC30: 0.4637052731
I31: 25 | J31: 0.5900826446 | K31: 0.03177221697 | L31: 0.7189668114 | M31: -0.1537775301 | N31: 2.692503095 | O31: 2.584566379 | P31: -1.105609405 | Q31: 0.4568633905 | R31: 1.935820365 | S31: 25 | T31: 0.7071067812 | U31: 21.79449472 | V31: 0.6488856845 | W31: 0.4588314677 | X31: 0.3244428423 | Y31: 237.5 | Z31: 0.6315789474 | AA31: 0.1488645855 | AB31: 0.6488856845 | AC31: 0.5263157895
I32: 26 | J32: 0.6136859504 | K32: 0.04869175872 | L32: 0.714369676 | M32: -0.2356681122 | N32: 2.189002432 | O32: 2.55162017 | P32: -1.68354153 | Q32: 0.6956783181 | R32: 1.563756958 | S32: 26 | T32: 0.7353910524 | U32: 20.46277035 | V32: 0.6645340341 | W32: 0.4886923827 | X32: 0.3593800057 | Y32: 226.446464 | Z32: 0.6443907201 | AA32: 0.1623763603 | AB32: 0.6645340341 | AC32: 0.5970506124
I33: 27 | J33: 0.6372892562 | K33: 0.06548003549 | L33: 0.7078467174 | M33: -0.3169233718 | N33: 1.679600579 | O33: 2.505234876 | P33: -2.243331684 | Q33: 0.9269965635 | R33: 1.188899756 | S33: 27 | T33: 0.7636753237 | U33: 19.21434506 | V33: 0.6814996805 | W33: 0.5204444891 | X33: 0.3974506137 | Y33: 215.312224 | Z33: 0.6580211628 | AA33: 0.1773413765 | AB33: 0.6814996805 | AC33: 0.6771561656
I34: 28 | J34: 0.660892562 | K34: 0.08209178883 | L34: 0.6994155201 | M34: -0.3973242579 | N34: 1.165670798 | O34: 2.445910349 | P34: -2.778947525 | Q34: 1.148325424 | R34: 0.8152882474 | S34: 28 | T34: 0.7919595949 | U34: 18.04092852 | V34: 0.6999033774 | W34: 0.5542951953 | X34: 0.4389793983 | Y34: 204.137984 | Z34: 0.672486312 | AA34: 0.1939765396 | AB34: 0.6999033774 | AC34: 0.7681079088
I35: 29 | J35: 0.6844958678 | K35: 0.09848223619 | L35: 0.6890988135 | M35: -0.4766540232 | N35: 0.6485985598 | O35: 2.374285874 | P35: -3.284617218 | Q35: 1.357279842 | R35: 0.446948498 | S35: 29 | T35: 0.8202438662 | U35: 16.93547522 | V35: 0.7198791924 | W35: 0.590476492 | X35: 0.4843347207 | Y35: 192.965984 | Z35: 0.6877896158 | AA35: 0.2125358701 | AB35: 0.7198791924 | AC35: 0.871656219
I36: 30 | J36: 0.7080991736 | K36: 0.1146071916 | L36: 0.6769244097 | M36: -0.5546988074 | N36: 0.1297778066 | O36: 2.291133282 | P36: -3.754891627 | Q36: 1.55160811 | R36: 0.0878497651 | S36: 30 | T36: 0.8485281374 | U36: 15.89199659 | V36: 0.7415753555 | W36: 0.6292475552 | X36: 0.533934256 | Y36: 181.84 | Z36: 0.7039155301 | AA36: 0.2333172397 | AB36: 0.7415753555 | AC36: 0.9898812143
I37: 31 | J37: 0.7317024793 | K37: 0.1304231849 | L37: 0.6629251287 | M37: -0.6312482147 | N37: -0.3893928064 | O37: 2.197348631 | P37: -4.18470304 | Q37: 1.729216132 | R37: -0.2581382763 | S37: 31 | T37: 0.8768124087 | U37: 14.90541389 | V37: 0.7651547397 | W37: 0.6708971703 | X37: 0.5882509639 | Y37: 170.805344 | Z37: 0.7208205383 | AA37: 0.2566700749 | AB37: 0.7651547397 | AC37: 1.125257533
I38: 32 | J38: 0.7553057851 | K38: =F0/(ω*Z)*SIN(ω*J38-φ1) -> 0.1458875786 | L38: =F0/Z*COS(ω*J38-φ1) -> 0.6471387105 | M38: =-ω*F0/Z*SIN(ω*J38-φ1) -> -0.7060958805 | N38: =F0*COS(ω*J38) -> -0.9075136802 | O38: =rr*L38*L38 -> 2.093942553 | P38: =m*M38*L38 -> -4.569419776 | Q38: =s*K38*L38 -> 1.88818999 | R38: -0.5872872328 | S38: 32 | T38: 0.9050966799 | U38: =SQRT(rr*rr+(T38*m-s/T38)^2) -> 13.97144409 | V38: =F0/(T38*U38) -> 0.7907946654 | W38: =F0/U38 -> 0.7157456262 | X38: =T38*F0/U38 -> 0.6478189899 | Y38: =T38^2*rr^2+m^2*(ωτ^2-T38^2)^2 -> 159.908864 | Z38: =F0*m*(ωτ^2-T38^2)/Y38 -> 0.7384206044 | AA38: =F0*rr*T38/Y38 -> 0.2830039115 | AB38: 0.7907946654 | AC38: =F0*F0*rr/(2*U38*U38) -> 1.280729504
I39: 33 | J39: =I39*2*3.1416/(ω*121) -> 0.7789090909 | K39: 0.1609586834 | L39: 0.6296077126 | M39: -0.7790400277 | N39: -1.423188046 | O39: 1.982029359 | P39: -4.904896098 | Q39: 2.02681657 | R39: -0.8960501703 | S39: 33 | T39: =S39*ωτ/50 -> 0.9333809512 | U39: 13.08651301 | V39: 0.8186855506 | W39: 0.7641454979 | X39: 0.7132388516 | Y39: 149.198944 | Z39: 0.7565737194 | AA39: 0.3127974388 | AB39: 0.8186855506 | AC39: 1.459795855
I40: 34 | J40: 0.8025123967 | K40: 0.17559587 | L40: 0.6103793956 | M40: -0.8498840109 | N40: -1.935025731 | O40: 1.862815033 | P40: -5.187516889 | Q40: 2.14360202 | R40: -1.181099836 | S40: 34 | T40: 0.9616652224 | U40: 12.24769168 | V40: 0.8490276702 | W40: 0.8164803833 | X40: 0.7851807894 | Y40: 138.725504 | Z40: 0.7750557533 | AA40: 0.3466072188 | AB40: 0.8490276702 | AC40: 1.666600541
I41: 35 | J41: 0.8261157025 | K41: 0.189759679 | L41: 0.589505596 | M41: -0.9184368464 | N41: -2.441646904 | O41: 1.737584239 | P41: -5.414236605 | Q41: 2.237287853 | R41: -1.439364513 | S41: 35 | T41: 0.9899494937 | U41: 11.4526532 | V41: 0.8820249133 | W41: 0.8731601163 | X41: 0.8643844151 | Y41: 128.54 | Z41: 0.7935273067 | AA41: 0.385074488 | AB41: 0.8820249133 | AC41: 1.906021472
I42: 36 | J42: 0.8497190083 | K42: 0.2034119271 | L42: 0.5670425861 | M42: -0.984513727 | N42: -2.941685798 | O42: 1.607686472 | P42: -5.582612098 | Q42: 2.306864503 | R42: -1.668061122 | S42: 36 | T42: 1.018233765 | U42: 10.69964808 | V42: 0.9178738813 | W42: 0.9346101779 | X42: 0.9516516402 | Y42: 118.695424 | Z42: 0.8114887394 | AA42: 0.4289271358 | AB42: 0.9178738813 | AC42: 2.183740462
I43: 37 | J43: 0.873322314 | K43: 0.2165158099 | L43: 0.5430509225 | M43: -1.04793652 | N43: -3.43379439 | O43: 1.474521522 | P43: -5.69082894 | Q43: 2.351582207 | R43: -1.864725211 | S43: 37 | T43: 1.046518036 | U43: 9.987496932 | V43: 0.9567459303 | W43: 1.001251872 | X43: 1.047828143 | Y43: 109.246304 | Z43: 0.8282202389 | AA43: 0.4789718269 | AB43: 0.9567459303 | AC43: 2.506263278
I44: 38 | J44: 0.8969256198 | K44: 0.2290360018 | L44: 0.5175952828 | M44: -1.108534249 | N44: -3.916646036 | O44: =rr*L44*L44 -> 1.339524384 | P44: -5.737720979 | Q44: =s*K44*L44 -> 2.370959082 | R44: -2.027237513 | S44: 38 | T44: 1.074802307 | U44: 9.315599165 | V44: 0.9987587947 | W44: 1.073468257 | X44: 1.15376616 | Y44: 100.248704 | Z44: 0.842704161 | AA44: 0.5360679313 | AB44: 0.9987587947 | AC44: 2.880835248
I45: 39 | J45: 0.9205289256 | K45: 0.2409387501 | L45: 0.4907442912 | M45: -1.166143551 | N45: -4.388939047 | O45: 1.204149797 | P45: -5.722782902 | Q45: 2.364786323 | R45: -2.153846782 | S45: 39 | T45: 1.103086579 | U45: 8.683956354 | V45: 1.043933339 | W45: 1.151548855 | X45: 1.270258087 | Y45: 91.760224 | Z45: 0.8535288667 | AA45: 0.6010701209 | AB45: 1.043933339 | AC45: 3.315161916
I46: 40 | J46: 0.9441322314 | K46: 0.2521919672 | L46: 0.4625703336 | M46: -1.220609121 | N46: -4.8494002 | O46: 1.069856568 | P46: -5.646175683 | Q46: 2.333130448 | R46: -2.243188668 | S46: 40 | T46: 1.13137085 | U46: 8.093207028 | V46: 1.092130071 | W46: 1.235604126 | X46: 1.397926491 | Y46: 83.84 | Z46: 0.858778626 | AA46: 0.6747202111 | AB46: 1.092130071 | AC46: 3.816793893
I47: 41 | J47: 0.9677355372 | K47: 0.2627653161 | L47: 0.4331493623 | M47: -1.27178413 | N47: -5.296788165 | O47: 0.9380918502 | P47: =m*M47*L47 -> -5.508724848 | Q47: 2.276332582 | R47: -2.294300416 | S47: 41 | T47: 1.159655121 | U47: 7.544666912 | V47: 1.142960124 | W47: 1.325439561 | X47: 1.537052775 | Y47: 76.548704 | Z47: 0.8559256601 | AA47: 0.7574622825 | AB47: 1.142960124 | AC47: 4.391975075
I48: 42 | J48: 0.991338843 | K48: 0.2726302928 | L48: 0.4025606914 | M48: -1.319530617 | N48: -5.72989686 | O48: 0.8102755513 | P48: -5.311911577 | Q48: 2.195004784 | R48: -2.306631242 | S48: 42 | T48: 1.187939392 | U48: 7.04036306 | V48: 1.195668149 | W48: 1.420381295 | X48: 1.687326892 | Y48: 69.948544 | Z48: 0.8417616241 | AA48: 0.8491523372 | AB48: 1.195668149 | AC48: 5.043707557
I49: 43 | J49: 1.014942149 | K49: 0.2817603031 | L49: 0.370886783 | M49: -1.363719867 | N49: -6.147558693 | O49: 0.687785029 | P49: -5.057856744 | Q49: 2.090023448 | R49: -2.280048267 | S49: 43 | T49: 1.216223664 | U49: 6.58304195 | V49: 1.248992781 | W49: 1.519054576 | X49: 1.847510122 | Y49: 64.103264 | Z49: 0.8124391295 | AA49: 0.9486441 | AB49: 1.248992781 | AC49: 5.768817014
I50: 44 | J50: 1.038545455 | K50: 0.2901307339 | L50: 0.3382130247 | M50: -1.404232752 | N50: -6.548647718 | O50: 0.5719402505 | P50: -4.749298064 | Q50: 1.962519861 | R50: -2.214837953 | S50: 44 | T50: 1.244507935 | U50: 6.176120369 | V50: 1.301027806 | W50: 1.619139428 | X50: 2.015031866 | Y50: 59.078144 | Z50: 0.7637342162 | AA50: 1.053272709 | AB50: 1.301027806 | AC50: 6.554031217
I51: 45 | J51: 1.06214876 | K51: 0.2977190198 | L51: 0.3046274997 | M51: -1.440960056 | N51: -6.932082663 | O51: 0.4639895678 | P51: -4.389560589 | Q51: 1.813868012 | R51: -2.111703009 | S51: 45 | T51: 1.272792206 | U51: 5.823536747 | V51: 1.349135818 | W51: 1.717169554 | X51: 2.185600025 | Y51: 54.94 | Z51: 0.6916636331 | AA51: 1.158347476 | AB51: 1.349135818 | AC51: 7.371678194
I52: 46 | J52: 1.085752066 | K52: 0.3045047041 | L52: 0.2702207489 | M52: -1.473802768 | N52: -7.296829852 | O52: 0.3650962657 | P52: -3.982520877 | Q52: 1.645669784 | R52: -1.971754827 | S52: 46 | T52: 1.301076477 | U52: 5.529457119 | V52: 1.389999616 | W52: 1.808495804 | X52: 2.35299135 | Y52: 51.757184 | Z52: 0.5935407923 | AA52: 1.256904237 | AB52: 1.389999616 | AC52: 8.176642686
I53: 47 | J53: 1.109355372 | K53: 0.3104694938 | L53: 0.2350855274 | M53: -1.50267235 | N53: -7.641905986 | O53: 0.2763260259 | P53: -3.532565218 | Q53: 1.459737693 | R53: -1.796501499 | S53: 47 | T53: 1.329360749 | U53: 5.297807399 | V53: 1.41991054 | W53: 1.887573339 | X53: 2.509265906 | Y53: 49.599584 | Z53: 0.4693587753 | AA53: 1.340092639 | AB53: 1.41991054 | AC53: 8.907332771
I54: 48 | J54: 1.132958678 | K54: 0.3155973086 | L54: 0.1993165538 | M54: -1.527490974 | N54: -7.966380796 | O54: 0.1986354432 | P54: -3.044542369 | Q54: 1.258075359 | R54: -1.587831567 | S54: 48 | T54: 1.35764502 | U54: 5.13165557 | V54: 1.435344897 | W54: 1.948688852 | X54: 2.645627715 | Y54: 48.538624 | Z54: 0.323041708 | AA54: 1.3985203 | AB54: 1.435344897 | AC54: 9.493470602
I55: 49 | J55: 1.156561983 | K55: 0.319874325 | L55: 0.1630102556 | M55: -1.548191733 | N55: -8.269379551 | O55: 0.1328617172 | P55: -2.523711301 | Q55: 1.042855909 | R55: -1.347993674 | S55: 49 | T55: 1.385929291 | U55: 5.03255044 | V55: 1.433741282 | W55: 1.987064038 | X55: 2.753930254 | Y55: 48.647264 | Z55: 0.1628046338 | AA55: 1.424467871 | AB55: 1.433741282 | AC55: 9.87105873
I56: 50 | J56: 1.180165289 | K56: 0.3232890127 | L56: 0.1262645085 | M56: -1.564718821 | N56: -8.550085417 | O56: 0.07971363052 | P56: -1.975684529 | Q56: 0.8163985657 | R56: -1.079572333 | S56: 50 | T56: 1.414213562 | U56: 5 | V56: 1.414213562 | W56: 2 | X56: 2.828427125 | Y56: 50 | Z56: 0 | AA56: 1.414213562 | AB56: 1.414213562 | AC56: 10
I57: 51 | J57: 1.203768595 | K57: 0.3258321662 | L57: 0.089178373 | M57: -1.577027685 | N57: -8.807741656 | O57: 0.03976391105 | P57: =m*M57*L57 -> -1.406367631 | Q57: 0.5811436491 | R57: -0.7854600707 | S57: 51 | T57: 1.442497834 | U57: 5.031277795 | V57: 1.377864572 | W57: 1.98756666 | X57: 2.867060601 | Y57: 52.672864 | Z57: -0.1533996708 | AA57: 1.369298842 | AB57: 1.377864572 | AC57: 9.876053066
I58: 52 | J58: 1.227371901 | K58: 0.3274969298 | L58: 0.05185182725 | M58: -1.58508514 | N58: -9.04165367 | O58: 0.01344305995 | P58: -0.8218956087 | Q58: 0.3396262846 | R58: -0.4688262641 | S58: 52 | T58: 1.470782105 | U58: 5.121644521 | V58: 1.32752354 | W58: 1.952497866 | X58: 2.871698922 | Y58: 56.743424 | Z58: -0.2876104198 | AA58: 1.29599344 | AB58: 1.32752354 | AC58: 9.530619795
I59: 53 | J59: 1.250975207 | K59: 0.3282788154 | L59: 0.01438549749 | M59: -1.588869467 | N59: -9.25119087 | O59: 0.00103471269 | P59: -0.2285667772 | Q59: 0.0944490815 | R59: -0.133082983 | S59: 53 | T59: 1.499066376 | U59: 5.264911016 | V59: 1.267033511 | W59: 1.899367334 | X59: 2.847277706 | Y59: 62.290784 | Z59: -0.3968484327 | AA59: 1.203281031 | AB59: 1.267033511 | AC59: 9.018990674
I60: 54 | J60: 1.274578512 | K60: 0.3281757152 | L60: -0.02311961321 | M60: -1.588370462 | N60: -9.435788379 | O60: 0.002672582575 | P60: 0.3672251071 | Q60: -0.151745912 | R60: 0.2181517777 | S60: 54 | T60: 1.527350647 | U60: 5.454151085 | V60: 1.200422377 | W60: 1.833465895 | X60: 2.800345321 | Y60: 69.395584 | Z60: -0.4795694204 | AA60: 1.100466744 | AB60: 1.200422377 | AC60: 8.403992969
I61: 55 | J61: 1.298181818 | K61: 0.3271879072 | L61: -0.06056239723 | M61: -1.583589471 | N61: -9.594948552 | O61: 0.01833901979 | P61: 0.9590597459 | Q61: -0.3963056801 | R61: 0.5810930856 | S61: 55 | T61: 1.555634919 | U61: 5.68236361 | V61: 1.131262254 | W61: 1.759831064 | X61: 2.737654655 | Y61: 78.14 | Z61: -0.5374968006 | AA61: 0.9954152282 | AB61: 1.131262254 | AC61: 7.742513437
I62: 56 | J62: 1.321785124 | K62: 0.3253180543 | L62: -0.09784191497 | M62: -1.574539383 | N62: -9.728242318 | O62: 0.04786520162 | P62: 1.540559484 | Q62: -0.6365948282 | R62: 0.9518298577 | S62: 56 | T62: 1.58391919 | U62: 5.942960164 | V62: 1.062341532 | W62: 1.682663138 | X62: 2.665202435 | Y62: 88.607744 | Z62: -0.5742161769 | AA62: 0.8937814678 | AB62: 1.062341532 | AC62: 7.078388092
I63: 57 | J63: 1.34538843 | K63: 0.3225711974 | L63: -0.134857667 | M63: -1.561244595 | N63: -9.835310341 | O63: 0.0909329517 | P63: 2.105458037 | Q63: -0.8700239822 | R63: 1.326367006 | S63: 57 | T63: 1.612203461 | U63: 6.230048611 | V63: 0.9956087746 | W63: 1.605123912 | X63: 2.587786327 | Y63: 100.884064 | Z63: -0.5939491097 | AA63: 0.7990377257 | AB63: 0.9956087746 | AC63: 6.441056934
I64: 58 | J64: 1.368991736 | K64: 0.3189547415 | L64: -0.1715098648 | M64: -1.543740949 | N64: -9.915863982 | O64: 0.1470781687 | P64: 2.647668015 | Q64: -1.094077692 | R64: 1.700668491 | S64: 58 | T64: 1.640487732 | U64: 6.53854573 | V64: 0.9322788836 | W64: 1.529392072 | X64: 2.508948932 | Y64: 115.055744 | Z64: -0.6007522753 | AA64: 0.7129099666 | AB64: 0.9322788836 | AC64: 5.847600273
I65: 59 | J65: 1.392595041 | K65: 0.3144784359 | L65: -0.2076997003 | M65: -1.52207563 | N65: -9.969686081 | O65: 0.2156958275 | P65: 3.161346521 | Q65: -1.306341538 | R65: 2.070700811 | S65: 59 | T65: 1.668772004 | U65: 6.864174091 | V65: 0.8730009276 | W65: 1.456839507 | X65: 2.431132983 | Y65: 131.211104 | Z65: -0.5981201103 | AA65: 0.6359111206 | AB65: 0.8730009276 | AC65: 5.305953374
I66: 60 | J66: 1.416198347 | K66: 0.3091543481 | L66: -0.2433296114 | M66: -1.496307045 | N66: -9.996631544 | O66: 0.296046499 | P66: 3.640958118 | Q66: -1.504528148 | R66: 2.432476469 | S66: 60 | T66: 1.697056275 | U66: 7.203394262 | V66: 0.8180249888 | W66: 1.38823444 | X66: 2.355911968 | Y66: 149.44 | Z66: -0.5888650964 | AA66: 0.5678052311 | AB66: 0.8180249888 | AC66: 4.817987152
I67: 61 | J67: 1.439801653 | K67: 0.302996831 | L67: -0.2783035459 | M67: -1.466504662 | N67: -9.99662773 | O67: 0.3872643183 | P67: 4.081334475 | Q67: -1.686501849 | R67: 2.782096944 | S67: 61 | T67: 1.725340546 | U67: 7.553309243 | V67: 0.7673401203 | W67: 1.323923022 | X67: 2.28421807 | Y67: 169.833824 | Z67: -0.5751504482 | AA67: 0.5079496255 | AB67: 0.7673401203 | AC67: 4.381930422
I68: 62 | J68: 1.463404959 | K68: 0.2960224842 | L68: -0.3125272197 | M68: -1.432748823 | N68: -9.969674648 | O68: 0.4883663153 | P68: 4.477730063 | Q68: -1.850301679 | R68: 3.115794699 | S68: 62 | T68: 1.753624817 | U68: 7.911563739 | V68: 0.7207771093 | W68: 1.263972627 | X68: 2.216533767 | Y68: 192.485504 | Z68: -0.5585875184 | AA68: 0.4555212681 | AB68: 0.7207771093 | AC68: 3.994067003
I69: 63 | J69: 1.487008264 | K69: 0.2882501093 | L69: -0.3459083714 | M69: -1.395130529 | N69: -9.915844961 | O69: 0.5982630072 | P69: 4.825873292 | Q69: -1.994162517 | R69: 3.429973782 | S69: 63 | T69: 1.781909089 | U69: 8.276250144 | V69: 0.678079865 | W69: 1.208276674 | X69: 2.153039187 | Y69: 217.489504 | Z69: -0.5403479149 | AA69: 0.4096540421 | AB69: 0.678079865 | AC69: 3.649831304
I70: 64 | J70: 1.51061157 | K70: =F0/(ω*Z)*SIN(ω*J70-φ1) -> 0.2797006595 | L70: =F0/Z*COS(ω*J70-φ1) -> -0.378357011 | M70: =-ω*F0/Z*SIN(ω*J70-φ1) -> -1.353751192 | N70: =F0*COS(ω*J70) -> -9.835283784 | O70: =rr*L70*L70 -> 0.7157701389 | P70: =m*M70*L70 -> 5.122012546 | Q70: =s*K70*L70 -> -2.11653411 | R70: 3.721248575 | S70: 64 | T70: 1.81019336 | U70: =SQRT(rr*rr+(T70*m-s/T70)^2) -> 8.645826305 | V70: =F0/(T70*U70) -> 0.6389524301 | W70: =F0/U70 -> 1.156627446 | X70: =T70*F0/U70 -> 2.093719323 | Y70: =T70^2*rr^2+m^2*(ωτ^2-T70^2)^2 -> 244.941824 | Z70: =F0*m*(ωτ^2-T70^2)/Y70 -> -0.5212666335 | AA70: =F0*rr*T70/Y70 -> 0.3695149588 | AB70: 0.6389524301 | AC70: =F0*F0*rr/(2*U70*U70) -> 3.344467623
I71: 65 | J71: =I71*2*3.1416/(ω*121) -> 1.534214876 | K71: 0.2703971826 | L71: -0.4097856622 | M71: -1.308722364 | N71: -9.728208297 | O71: 0.8396214447 | P71: 5.362956605 | Q71: -2.21609777 | R71: =O71+P71+Q71 -> 3.986480279 | S71: 65 | T71: =S71*ωτ/50 -> 1.838477631 | U71: 9.01904625 | V71: 0.6030884842 | W71: 1.108764688 | X71: 2.038439077 | Y71: 274.94 | Z71: -0.5019276933 | AA71: 0.3343416075 | AB71: =SQRT(Z71^2+AA71^2) -> 0.6030884842 | AC71: 3.073397832
I72: 66 | J72: 1.557818182 | K72: 0.2603647593 | L72: -0.4401095985 | M72: -1.260165435 | N72: -9.594907157 | O72: 0.9684822935 | P72: 5.546109037 | Q72: -2.291780594 | R72: 4.222810737 | S72: 66 | T72: 1.866761902 | U72: 9.394903176 | V72: 0.570188905 | W72: 1.064406925 | X72: 1.986994296 | Y72: 307.583104 | Z72: -0.4827313271 | AA72: 0.3034565095 | AB72: 0.570188905 | AC72: 2.832405255
I73: 67 | J73: 1.581421488 | K73: 0.2496304354 | L73: -0.4692470716 | M73: -1.208211307 | N73: -9.435739723 | O73: 1.100964071 | P73: 5.669496178 | Q73: -2.342767016 | R73: 4.427693234 | S73: 67 | T73: 1.895046174 | U73: 9.772583159 | V73: 0.5399714888 | W73: 1.023270904 | X73: 1.93914561 | Y73: 342.971744 | Z73: -0.4639449249 | AA73: 0.2762685566 | AB73: 0.5399714888 | AC73: 2.617708356
I74: 68 | J74: 1.605024793 | K74: 0.2382231488 | L74: -0.4971195317 | M74: -1.15300004 | N74: -9.251135084 | O74: 1.235639144 | P74: 5.7317884 | Q74: -2.368507603 | R74: 4.59891994 | S74: 68 | T74: 1.923330445 | U74: 10.15142787 | V74: 0.5121756892 | W74: 0.9850830961 | X74: 1.894640309 | Y74: 381.208064 | Z74: -0.445740833 | AA74: 0.2522678068 | AB74: 0.5121756892 | AC74: 2.425971765
I75: 69 | J75: 1.628628099 | K75: 0.2261736517 | L75: -0.5236518391 | M75: -1.094680474 | N75: -9.041590904 | O75: 1.371056243 | P75: 5.732314436 | Q75: -2.368724973 | R75: 4.734645705 | S75: 69 | T75: 1.951614716 | U75: 10.5309047 | V75: 0.4865642914 | W75: 0.9495860313 | X75: 1.853226073 | Y75: 422.395744 | Z75: -0.4282240117 | AA75: 0.2310173272 | AB75: 0.4865642914 | AC75: 2.254284077
I76: 70 | J76: 1.652231405 | K76: 0.2135144276 | L76: -0.5487724671 | M76: -1.03340983 | N76: -8.807672079 | O76: 1.505756103 | P76: 5.671068617 | Q76: -2.343416784 | R76: 4.833407937 | S76: 70 | T76: 1.979898987 | U76: 10.91058277 | V76: 0.4629232765 | W76: 0.9165413263 | X76: 1.814659244 | Y76: 466.64 | Z76: -0.411452083 | AA76: 0.2121441569 | AB76: 0.4629232765 | AC76: 2.100120007
I77: 71 | J77: 1.675834711 | K77: 0.2002796036 | L77: -0.5724136947 | M77: -0.9693532816 | N77: -8.550009217 | O77: 1.638287189 | P77: 5.548710934 | Q77: -2.292855758 | R77: 4.894142365 | S77: 71 | T77: 2.008183259 | U77: 11.29011379 | V77: 0.4410606761 | W77: 0.8857306657 | X77: 1.778709494 | Y77: 514.047584 | Z77: -0.3954497722 | AA77: 0.1953304831 | AB77: 0.4410606761 | AC77: 1.96129703
I78: 72 | J78: 1.699438017 | K78: 0.1865048588 | L78: -0.5945117889 | M78: -0.9026835164 | N78: -8.269296933 | O78: 1.767221336 | P78: 5.366559922 | Q78: -2.217586744 | R78: 4.916194513 | S78: 72 | T78: 2.03646753 | U78: 11.66921665 | V78: 0.4208049181 | W78: 0.8569555522 | X78: 1.745162157 | Y78: 564.726784 | Z78: -0.3802192602 | AA78: 0.1803055555 | AB78: 0.4208049181 | AC78: 1.835932046
I79: 73 | J79: 1.723041322 | K79: 0.1722273274 | L79: -0.615007177 | M79: -0.8335802646 | N79: -7.966291983 | O79: 1.891169139 | P79: 5.126578453 | Q79: -2.118420849 | R79: 4.899326744 | S79: 73 | T79: 2.064751801 | U79: 12.04766508 | V79: 0.4020029691 | W79: 0.8300363544 | X79: 1.713819058 | Y79: 618.787424 | Z79: -0.3657475754 | AA79: 0.1668385395 | AB79: 0.4020029691 | AC79: 1.722400874
I80: 74 | J80: 1.746644628 | K80: 0.1574854995 | L80: -0.6338446067 | M80: -0.7622298173 | N80: -7.641811218 | O80: 2.008794927 | P80: 4.831352588 | Q80: -1.996426689 | R80: 4.843720826 | S80: 74 | T80: 2.093036072 | U80: 12.42527761 | V80: 0.3845184527 | W80: 0.8048109919 | X80: 1.684498437 | Y80: 676.340864 | Z80: -0.3520118518 | AA80: 0.1547323387 | AB80: 0.3845184527 | AC80: 1.619301832
I81: 75 | J81: 1.770247934 | K81: 0.1423191164 | L81: -0.6509732954 | M81: -0.6888245236 | N81: -7.296729384 | O81: 2.118831157 | P81: 4.484063701 | Q81: -1.852918885 | R81: 4.749975973 | S81: 75 | T81: 2.121320344 | U81: 12.80190958 | V81: 0.3682298472 | W81: 0.7811334659 | X81: 1.657034312 | Y81: 737.5 | Z81: -0.3389830508 | AA81: 0.1438183284 | AB81: 0.3682298472 | AC81: 1.525423729
I82: 76 | J82: 1.79385124 | K82: 0.1267690645 | L82: -0.666347067 | M82: -0.6135622721 | N82: -6.931976766 | O82: 2.220092068 | P82: 4.088454204 | Q82: -1.689443886 | R82: 4.619102386 | S82: 76 | T82: 2.149604615 | U82: 13.17744653 | V82: 0.3530288124 | W82: 0.7588723642 | X82: 1.631275536 | Y82: 802.379264 | Z82: -0.3266285805 | AA82: 0.1339519047 | AB82: 0.3530288124 | AC82: 1.439718163
I83: 77 | J83: 1.817454545 | K83: 0.1108772639 | L83: -0.6799244763 | M83: -0.5366459574 | N83: -6.548536677 | O83: 2.311486467 | P83: 3.648787215 | Q83: -1.507763312 | R83: 4.45251037 | S83: 77 | T83: 2.177888886 | U83: 13.55179889 | V83: 0.3388186699 | W83: 0.7379094156 | X83: 1.607084715 | Y83: 871.094624 | Z83: -0.3149141235 | AA83: 0.1250087434 | AB83: 0.3388186699 | AC83: 1.361275764
I84: 78 | J84: 1.841057851 | K84: 0.09468655647 | L84: -0.6916689208 | M84: -0.4582829333 | N84: -6.147442808 | O84: 2.39202948 | P84: 3.169800619 | Q84: -1.309834967 | R84: 4.251995133 | S84: 78 | T84: 2.206173157 | U84: 13.92489765 | V84: 0.3255130409 | W84: 0.7181381331 | X84: 1.584337072 | Y84: 943.763584 | Z84: -0.3038048987 | AA84: 0.1168816637 | AB84: 0.3255130409 | AC84: 1.289305946
I85: 79 | J85: 1.864661157 | K85: 0.0782405896 | L85: -0.7015487396 | M85: -0.3786844537 | N85: -5.729776442 | O85: 2.46085317 | P85: 2.656656012 | Q85: -1.09779174 | R85: 4.019717441 | S85: 79 | T85: 2.234457429 | U85: 14.29669074 | V85: 0.3130346355 | W85: 0.6994625667 | X85: 1.562919328 | Y85: 1020.505184 | Z85: -0.2932665161 | AA85: 0.1094780048 | AB85: 0.3130346355 | AC85: 1.223119705
I86: 80 | J86: 1.888264463 | K86: 0.06158369896 | L86: -0.7095372981 | M86: -0.2980651029 | N86: -5.296663541 | O86: 2.517215887 | P86: 2.114883078 | Q86: -0.8739186272 | R86: 3.758180337 | S86: 80 | T86: 2.2627417 | U86: 14.66714014 | V86: 0.3013141853 | W86: 0.6817961717 | X86: 1.542728628 | Y86: 1101.44 | Z86: -0.2832655433 | AA86: 0.102717429 | AB86: 0.3013141853 | AC86: 1.162115049
I87: 81 | J87: 1.911867769 | K87: 0.04476078877 | L87: -0.7156130605 | M87: -0.2166422176 | N87: -4.849271704 | O87: 2.560510262 | P87: 1.550320004 | Q87: -0.6406281008 | R87: 3.470202165 | S87: 81 | T87: 2.291025971 | U87: 15.03621944 | V87: 0.2902895033 | W87: 0.6650607912 | X87: 1.523671545 | Y87: 1186.690144 | Z87: -0.2737698646 | AA87: 0.09653008338 | AB87: 0.2902895033 | AC87: 1.10576464
I88: 82 | J88: 1.935471074 | K88: 0.02781721084 | L88: -0.7197596476 | M88: -0.1346353005 | N88: -4.388807026 | O88: 2.590269752 | P88: 0.9690505643 | Q88: -0.4004341175 | R88: 3.158886199 | S88: 82 | T88: 2.319310242 | U88: 15.40391183 | V88: 0.2799046607 | W88: 0.6491857464 | X88: 1.505663151 | Y88: 1276.379264 | Z88: -0.2647488952 | AA88: 0.09085505804 | AB88: 0.2799046607 | AC88: 1.053605333
I89: 83 | J89: 1.95907438 | K89: 0.01079864229 | L89: -0.7219658809 | M89: -0.05226542866 | N89: -3.916510846 | O89: 2.606173666 | P89: 0.3773385625 | Q89: -0.1559250258 | R89: 2.827587203 | S89: 83 | T89: 2.347594514 | U89: 15.77020845 | V89: 0.2701092645 | W89: 0.6341070273 | X89: 1.488626178 | Y89: 1370.632544 | Z89: -0.2561736926 | AA89: 0.08563909137 | AB89: 0.2701092645 | AC89: 1.005229305
I90: 84 | J90: 1.982677686 | K90: -0.006249037638 | L90: -0.7222258128 | M90: 0.03024534217 | N90: -3.433656395 | O90: 2.608050623 | P90: -0.2184396683 | Q90: 0.09026432575 | R90: 2.479875281 | S90: 84 | T90: 2.375878785 | U90: 16.135107 | V90: 0.260857826 | W90: 0.6197665747 | X90: 1.472490256 | Y90: 1469.576704 | Z90: -0.2480169963 | AA90: 0.08083548066 | AB90: 0.260857826 | AC90: 0.9602765178
I91: 85 | J91: 2.006280992 | K91: -0.02327987118 | L91: -0.7205387424 | M91: 0.1126745765 | N91: -2.94154537 | O91: 2.595880396 | P91: -0.8118639767 | Q91: 0.3354809821 | R91: 2.119497402 | S91: 85 | T91: 2.404163056 | U91: 16.49861062 | V91: 0.2521092079 | W91: 0.6061116438 | X91: 1.457191222 | Y91: 1573.34 | Z91: -0.2402532193 | AA91: 0.07640316321 | AB91: 0.2521092079 | AC91: 0.9184283117
I92: 86 | J92: 2.029884298 | K92: -0.04024794602 | L92: -0.7169092179 | M92: 0.1948000587 | N92: -2.441504422 | O92: 2.569794133 | P92: -1.396539577 | Q92: 0.57708247 | R92: 1.750337026 | S92: 86 | T92: 2.432447327 | U92: 16.86072686 | V92: 0.2438261393 | W92: 0.5930942409 | X92: 1.442670501 | Y92: 1682.052224 | Z92: -0.2328584062 | AA92: 0.07230593951 | AB92: 0.2438261393 | AC92: 0.8794019466
I93: 87 | J93: 2.053487603 | K93: -0.057107519 | L93: -0.7113470238 | M93: 0.276400392 | N93: -1.934881579 | O93: 2.530072941 | P93: -1.966165962 | Q93: 0.8124652735 | R93: 1.376372253 | S93: 87 | T93: 2.460731599 | U93: 17.22146697 | V93: 0.2359747914 | W93: 0.5806706257 | X93: 1.428874557 | Y93: 1795.844704 | Z93: -0.2258101712 | AA93: 0.06851181489 | AB93: 0.2359747914 | AC93: 0.8429459388
I94: 88 | J94: 2.077090909 | K94: -0.07381313948 | L94: -0.703867155 | M94: 0.3572555951 | N94: -1.423042613 | O94: 2.477144859 | P94: -2.514604793 | Q94: 1.03909289 | R94: 1.001632956 | S94: 88 | T94: 2.48901587 | U94: 17.58084514 | V94: 0.2285244045 | W94: 0.5688008695 | X94: 1.415754391 | Y94: 1914.850304 | Z94: -0.2190876222 | AA94: 0.06499244 | AB94: 0.2285244045 | AC94: 0.8088360729
I95: 89 | J95: 2.100694215 | K95: -0.09031977187 | L95: -0.6944897758 | M95: 0.4371476958 | N95: -0.9073673582 | O95: 2.411580244 | P95: -3.035946053 | Q95: 1.254523162 | R95: 0.6301573532 | S95: 89 | T95: 2.517300141 | U95: 17.93887798 | V95: 0.2214469607 | W95: 0.5574484655 | X95: 1.403265101 | Y95: 2039.203424 | Z95: -0.2126712788 | AA95: 0.06172263423 | AB95: 0.2214469607 | AC95: 0.7768719792
I96: 90 | J96: 2.124297521 | K96: -0.106582917 | L96: -0.6832401663 | M96: 0.5158613181 | N96: -0.3892459895 | O96: 2.334085624 | P96: -3.524571728 | Q96: 1.456434598 | R96: 0.2659484946 | S96: 90 | T96: 2.545584412 | U96: 18.29558403 | V96: 0.2147168956 | W96: 0.5465799825 | X96: 1.391365484 | Y96: 2169.04 | Z96: -0.2065429868 | AA96: 0.05867997852 | AB96: 0.2147168956 | AC96: 0.7468741932
I97: 91 | J97: 2.147900826 | K97: -0.122558732 | L97: -0.6701486535 | M97: 0.593184263 | N97: 0.1299247224 | O97: 2.245496089 | P97: -3.975216351 | Q97: 1.642651385 | R97: -0.08706887776 | S97: 91 | T97: 2.573868684 | U97: 18.65098339 | V97: 0.2083108442 | W97: 0.5361647583 | X97: 1.380017681 | Y97: 2304.497504 | Z97: -0.2006858325 | AA97: 0.05584446672 | AB97: 0.2083108442 | AC97: 0.7186816202
I98: 92 | J98: 2.171504132 | K98: -0.1382041489 | L98: -0.6552505299 | M98: 0.6689080806 | N98: 0.6487451786 | O98: 2.146766285 | P98: -4.383023743 | Q98: 1.811166836 | R98: -0.425090622 | S98: 92 | T98: 2.602152955 | U98: 19.00509732 | V98: 0.2022074169 | W98: 0.5261746274 | X98: 1.369186862 | Y98: 2445.714944 | Z98: -0.1950840596 | AA98: 0.05319820613 | AB98: 0.2022074169 | AC98: 0.6921493464
I99: 93 | J99: 2.195107438 | K99: -0.15347699 | L99: -0.6385859585 | M99: 0.7428286317 | N99: 1.165816724 | O99: 2.038960132 | P99: -4.743599338 | Q99: 1.960165016 | R99: -0.7444741903 | S99: 93 | T99: 2.630437226 | U99: 19.35794802 | V99: 0.1963870012 | W99: 0.5165836787 | X99: 1.358840939 | Y99: 2592.832864 | Z99: -0.1897229886 | AA99: 0.05072515978 | AB99: 0.1963870012 | AC99: 0.6671467429
I100: 94 | J100: 2.218710744 | K100: -0.1683360824 | L100: -0.6201998642 | M100: 0.8147466389 | N100: 1.67974542 | O100: 1.923239358 | P100: -5.053057548 | Q100: 2.088040309 | R100: -1.041777881 | S100: 94 | T100: 2.658721497 | U100: 19.70955836 | V100: 0.1908315861 | W100: 0.5073680402 | X100: 1.348950316 | Y100: 2745.993344 | Z100: -0.1845889398 | AA100: 0.04841092392 | AB100: 0.1908315861 | AC100: 0.6435558207
I101: 95 | J101: 2.24231405 | K101: -0.1827413684 | L101: -0.6001418129 | M101: 0.8844682229 | N101: 2.189145797 | O101: 1.800850978 | P101: -5.308063627 | Q101: 2.193414722 | R101: -1.313797927 | S101: 95 | T101: 2.687005769 | U101: 20.0599517 | V101: 0.1855246062 | W101: 0.4985056869 | X101: 1.339487656 | Y101: 2905.34 | Z101: -0.1796691609 | AA101: 0.04624253562 | AB101: 0.1855246062 | AC101: 0.6212697997
I102: 96 | J102: 2.265917355 | K102: =F0/(ω*Z)*SIN(ω*J102-φ1) -> -0.1966540136 | L102: =F0/Z*COS(ω*J102-φ1) -> -0.5784658778 | M102: =-ω*F0/Z*SIN(ω*J102-φ1) -> 0.9518054257 | N102: =F0*COS(ω*J102) -> 2.692644597 | O102: =rr*L102*L102 -> 1.673113859 | P102: =m*M102*L102 -> -5.505869611 | Q102: =s*K102*L102 -> 2.275152732 | R102: -1.55760302 | S102: 96 | T102: 2.71529004 | U102: =SQRT(rr*rr+(T102*m-s/T102)^2) -> 20.40915168 | V102: =F0/(T102*U102) -> 0.1804508035 | W102: 0.4899762694 | X102: 1.330427684 | Y102: 3071.017984 | Z102: =F0*m*(ωτ^2-T102^2)/Y102 -> -0.1749517596 | AA102: 0.04420830575 | AB102: 0.1804508035 | AC102: 0.6001918613
I103: 97 | J103: =I103*2*3.1416/(ω*121) -> 2.289520661 | K103: -0.2100365119 | L103: -0.5552304937 | M103: 1.016576717 | N103: 3.188884469 | O103: 1.541404506 | P103: -5.644343927 | Q103: 2.332373524 | R103: -1.770565898 | S103: 97 | T103: =S103*ωτ/50 -> 2.743574311 | U103: 20.75718213 | V103: 0.1755961041 | W103: 0.4817609604 | X103: 1.321746995 | Y103: 3243.173984 | Z103: -0.1704256394 | AA103: 0.04229767389 | AB103: 0.1755961041 | AC103: 0.5802340575
I104: 98 | J104: 2.313123967 | K104: -0.2228527862 | L104: -0.5304982993 | M104: 1.078607485 | N104: 3.676527632 | O104: 1.407142228 | P104: -5.721994366 | Q104: 2.364460482 | R104: -1.950391656 | S104: 98 | T104: 2.771858582 | U104: 21.10406693 | V104: 0.1709475084 | W104: 0.4738423183 | X104: 1.313423897 | Y104: 3421.956224 | Z104: -0.1660804414 | AA104: 0.04050108185 | AB104: 0.1709475084 | AC104: 0.5613163566
I105: 99 | J105: 2.336727273 | K105: -0.235068286 | L105: -0.5043359686 | M105: 1.137730504 | N105: 4.15425948 | O105: 1.271773846 | P105: -5.73798416 | Q105: 2.371067835 | R105: -2.095142479 | S105: 99 | T105: 2.800142853 | U105: 21.4498299 | V105: 0.1664929926 | W105: 0.4662041633 | X105: 1.305438256 | Y105: 3607.514464 | Z105: -0.1619064888 | AA105: 0.03880986315 | AB105: 0.1664929926 | AC105: 0.5433658048
I106: 100 | J106: 2.360330579 | K106: -0.2466500804 | L106: -0.476814031 | M106: 1.193786389 | N106: 4.620792127 | O106: 1.136758101 | P106: -5.692141002 | Q106: 2.352124381 | R106: -2.20325852 | S106: 100 | T106: 2.828427125 | U106: 21.79449472 | V106: 0.1622214211 | W106: 0.4588314677 | X106: 1.297771369 | Y106: 3800 | Z106: -0.1578947368 | AA106: 0.03721614638 | AB106: 0.1622214211 | AC106: 0.5263157895
I107: 101 | J107: 2.383933884 | K107: -0.2575669466 | L107: -0.448006681 | M107: 1.246624021 | N107: 5.074867877 | O107: 1.003549931 | P107: -5.584958903 | Q107: 2.307834257 | R107: -2.273574714
I108: 102 | J108: 2.40753719 | K108: -0.2677894546 | L108: -0.4179915786 | M108: 1.29610096 | N108: 5.515262616 | O108: 0.8735847988 | P108: -5.417592863 | Q108: 2.238674737 | R108: -2.305333327
I109: 103 | J109: 2.431140496 | K109: -0.2772900462 | L109: -0.3868496395 | M109: 1.342083823 | N109: 5.940789113 | O109: 0.7482632178 | P109: -5.191846432 | Q109: 2.145391088 | R109: -2.298192127
I110: 104 | J110: 2.454743802 | K110: -0.2860431093 | L110: -0.3546648173 | M110: 1.384448649 | N110: 6.350300218 | O110: 0.6289356631 | P110: -4.910152272 | Q110: 2.028988542 | R110: -2.252228067
I111: 105 | J111: 2.478347107 | K111: -0.2940250472 | L111: -0.321523877 | M111: 1.423081229 | N111: 6.742691956 | O111: 0.5168880173 | P111: -4.575545938 | Q111: 1.890721462 | R111: -2.167936459
I112: 106 | J112: 2.501950413 | K112: -0.3012143419 | L112: -0.2875161611 | M112: 1.457877415 | N112: 7.116906504 | O112: 0.4133277143 | P112: -4.191633176 | Q112: 1.732079825 | R112: -2.046225637
I113: 107 | J113: 2.525553719 | K113: -0.3075916121 | L113: -0.2527333488 | M113: 1.488743403 | N113: 7.471935041 | O113: 0.319370728 | P113: -3.762551057 | Q113: 1.554773164 | R113: -1.888407165
I114: 108 | J114: 2.549157025 | K114: -0.3131396659 | L114: -0.2172692089 | M114: 1.515595983 | N114: 7.806820467 | O114: 0.2360295457 | P114: -3.292923403 | Q114: 1.36071215 | R114: -1.696181707
I115: 109 | J115: 2.572760331 | K115: -0.3178435465 | L115: -0.1812193469 | M115: 1.538362765 | N115: 8.120659987 | O115: 0.1642022585 | P115: -2.787810957 | Q115: 1.151987999 | R115: -1.4716207
I116: 110 | J116: 2.596363636 | K116: -0.3216905732 | L116: -0.1446809473 | M116: 1.556982374 | N116: 8.412607542 | O116: 0.1046628826 | P116: -2.252656849 | Q116: 0.9308499375 | R116: -1.217144029
I117: 111 | J117: 2.619966942 | K117: -0.3246703748 | L117: -0.1077525117 | M117: 1.571404614 | N117: 8.681876087 | O117: 0.05805301885 | P117: -1.69322794 | Q117: 0.699680967 | R117: -0.9354939543
I118: 112 | J118: 2.643570248 | K118: -0.3267749185 | L118: -0.07053359291 | M118: 1.581590605 | N118: 8.92773972 | O118: 0.02487493865 | P118: -1.115552679 | Q118: 0.4609721815 | R118: -0.6297055591
I119: 113 | J119: 2.667173554 | K119: -0.3279985306 | L119: -0.03312452718 | M119: 1.587512888 | N119: 9.149535633 | O119: 0.005486171504 | P119: -0.5258561381 | Q119: 0.2172959248 | R119: -0.3030740417
I120: 114 | J120: 2.69077686 | K120: -0.3283379125 | L120: 0.004373836845 | M120: 1.589155497 | N120: 9.3466659 | O120: 9.565224373e-05 | P120: 0.06950706863 | Q120: -0.02872192919 | R120: 0.04088079169
I121: 115 | J121: 2.714380165 | K121: -0.3277921494 | L121: 0.04186040972 | M121: 1.586514003 | N121: 9.51859909 | O121: 0.00876146951 | P121: 0.6641212619 | Q121: -0.2744302735 | R121: 0.3984524579
I122: 116 | J122: 2.737983471 | K122: -0.3263627124 | L122: 0.07923413381 | M122: 1.579595528 | N122: 9.6648717 | O122: 0.0313902398 | P122: 1.251578834 | Q122: -0.5171813364 | R122: 0.7657877375
I123: 117 | J123: 2.761586777 | K123: -0.3240534551 | L123: 0.1163942557 | M123: 1.568418723 | N123: 9.785089403 | O123: 0.06773811377 | P123: 1.825549298 | Q123: -0.7543592141 | R123: 1.138928198
I124: 118 | J124: 2.785190083 | K124: -0.3208706029 | L124: 0.1532405977 | M124: 1.553013718 | N124: 9.878928112 | O124: 0.117413404 | P124: 2.379847505 | Q124: -0.9834080598 | R124: 1.513852849
I125: 119 | J125: 2.808793388 | K125: -0.3168227363 | L125: 0.1896738283 | M125: 1.533422044 | N125: 9.946134852 | O125: 0.1798808058 | P125: 2.908500294 | Q125: -1.201859626 | R125: 1.886521474
I126: 120 | J126: 2.832396694 | K126: -0.3119207676 | L126: 0.2255957294 | M126: 1.509696515 | N126: 9.986528446 | O126: 0.2544671656 | P126: 3.405810865 | Q126: -1.407359862 | R126: 2.252918169
I127: 121 | J127: 2.856 | K127: -0.3061779117 | L127: 0.2609094614 | M127: 1.481901093 | N127: 9.999999999 | O127: 0.3403687353 | P127: 3.86642016 | Q127: -1.597694281 | R127: 2.609094614

Sheet ΦΑΣΟΡΕΣ
C5: t | D5: 0 | E5: Να αλλάζει ανά 0,1 | Q5: t | R5: F | S5: x | T5: v | U5: a
Q6: =t -> 0 | R6: =E17 -> 0 | S6: =E8 -> -0.1186048953 | T6: =E11 -> -0.6735952391 | U6: =E14 -> 0.2869551945
C7: x1 | D7: 0 | E7: =F0/(ω*Z)*COS(ω*t-3.1415/2-φ1) -> -0.3061741599
C8: x2 | D8: 0 | E8: =F0/(ω*Z)*SIN(ω*t-3.1415/2-φ1) -> -0.1186048953
C10: v1 | D10: 0 | E10: =F0/Z*COS(ω*t-φ1) -> 0.2608995644
C11: v2 | D11: 0 | E11: =F0/Z*SIN(ω*t-φ1) -> -0.6735952391
C13: acc1 | D13: 0 | E13: =F0*ω/Z*COS(ω*t+3.1415/2-φ1)/2 -> 0.7409680575
C14: acc2 | D14: 0 | E14: =F0*ω/Z*SIN(ω*t+3.1415/2-φ1)/2 -> 0.2869551945
C16: F1 | D16: 0 | E16: =F0*COS(ω*t)/10 -> 1
C17: F2 | D17: 0 | E17: =F0*SIN(ω*t)/10 -> 0
I29: F | J29: x | K29: v | L29: a
I30: =E16 -> 1 | J30: =E7 -> -0.3061741599 | K30: =E10 -> 0.2608995644 | L30: =E13 -> 0.7409680575

Sheet Φύλλο3
